fUST/lending_fUST_20240827
["ID","MTS","AMOUNT","RATE_DAILY","PERIOD"]
[336068049,1724688641243,-500.0,0.00011232,2]
[336068051,1724688641252,-666.81,0.00011232,2]
[336068053,1724688641262,-1951.16,0.00011232,2]
[336068055,1724688641271,-500.0,0.00011232,2]
[336068057,1724688641280,-893.49,0.00011232,2]
[336068059,1724688641292,-500.0,0.00011232,2]
[336068060,1724688641302,-756.87,0.00011232,2]
[336068062,1724688641311,-500.0,0.00011232,2]
[336068064,1724688641320,-642.05,0.00011232,2]
[336068066,1724688641329,-500.0,0.00011232,2]
[336068068,1724688641338,-500.0,0.00011232,2]
[336068069,1724688641347,-500.0,0.00011232,2]
[336068070,1724688641357,-507.14,0.00011232,2]
[336068071,1724688641366,-948.36,0.00011232,2]
[336068072,1724688641375,-500.0,0.00011232,2]
[336068073,1724688641385,-500.0,0.00011232,2]
[336068074,1724688641394,-500.0,0.00011232,2]
[336068076,1724688641403,-500.0,0.00011232,2]
[336068078,1724688641413,-500.0,0.00011232,2]
[336068080,1724688641422,-500.0,0.00011232,2]
[336068082,1724688641432,-500.0,0.00011232,2]
[336068084,1724688641441,-500.0,0.00011232,2]
[336068085,1724688641451,-500.0,0.00011232,2]
[336068087,1724688641460,-852.28,0.00011232,2]
[336068089,1724688641469,-876.89,0.00011232,2]
[336068091,1724688641479,-500.0,0.00011232,2]
[336068093,1724688641488,-500.0,0.00011232,2]
[336068095,1724688641497,-500.0,0.00011232,2]
[336068097,1724688641507,-531.75,0.00011232,2]
[336068099,1724688641518,-500.0,0.00011232,2]
[336068100,1724688641528,-500.0,0.00011232,2]
[336068101,1724688641538,-549.14,0.00011232,2]
[336068102,1724688641547,-515.07013968,0.00011232,2]
[336068103,1724688641557,-152.01454984,0.00011232,2]
[336068104,1724688641567,-500.0,0.00011232,2]
[336068105,1724688641577,-187.10364623,0.00011232,2]
[336068106,1724688641587,-500.0,0.00011232,2]
[336068107,1724688641597,-500.0,0.00011232,2]
[336068108,1724688641607,-1257.07,0.00011232,2]
[336068109,1724688641616,-500.0,0.00011232,2]
[336068110,1724688641626,-1620.4,0.00011232,2]
[336068111,1724688641635,-643.03,0.00011232,2]
[336068112,1724688641648,-500.0,0.00011232,2]
[336068113,1724688641658,-500.0,0.00011232,2]
[336068114,1724688641667,-275.41052964,0.00011232,2]
[336068115,1724688641676,-500.0,0.00011232,2]
[336068116,1724688641686,-17680.36,0.00011232,2]
[336068117,1724688641695,-500.0,0.00011232,2]
[336068118,1724688641705,-500.0,0.00011232,2]
[336068119,1724688641714,-890.96,0.00011232,2]
[336068120,1724688641726,-500.0,0.00011232,2]
[336068121,1724688641736,-890.21,0.00011232,2]
[336068122,1724688641746,-500.0,0.00011232,2]
[336068123,1724688641755,-500.0,0.00011232,2]
[336068124,1724688641764,-513.92,0.00011232,2]
[336068125,1724688641773,-500.0,0.00011232,2]
[336068126,1724688641783,-245.04107141,0.00011232,2]
[336068127,1724688641792,-522.6,0.00011232,2]
[336068128,1724688641801,-500.0,0.00011232,2]
[336068129,1724688641811,-500.0,0.00011232,2]
[336068130,1724688641820,-500.0,0.00011232,2]
[336068131,1724688641830,-500.0,0.00011232,2]
[336068132,1724688641840,-526.31,0.00011232,2]
[336068133,1724688641852,-552.98,0.00011232,2]
[336068134,1724688641862,-927.57,0.00011232,2]
[336068135,1724688641871,-500.0,0.00011232,2]
[336068136,1724688641883,-500.0,0.00011232,2]
[336068137,1724688641895,-500.0,0.00011232,2]
[336068138,1724688641904,-758.27,0.00011232,2]
[336068139,1724688641913,-500.0,0.00011232,2]
[336068140,1724688641922,-500.0,0.00011232,2]
[336068141,1724688641931,-500.0,0.00011232,2]
[336068142,1724688641941,-500.0,0.00011232,2]
[336068143,1724688641950,-500.0,0.00011232,2]
[336068144,1724688641961,-684.26,0.00011232,2]
[336068145,1724688641970,-500.0,0.00011232,2]
[336068146,1724688641979,-500.0,0.00011232,2]
[336068147,1724688641988,-500.0,0.00011232,2]
[336068148,1724688641998,-500.0,0.00011232,2]
[336068149,1724688642007,-500.0,0.00011232,2]
[336068150,1724688642017,-500.0,0.00011232,2]
[336068151,1724688642026,-500.0,0.00011232,2]
[336068152,1724688642036,-555.39,0.00011232,2]
[336068153,1724688642045,-542.95,0.00011232,2]
[336068154,1724688642054,-500.0,0.00011232,2]
[336068155,1724688642063,-549.18,0.00011232,2]
[336068156,1724688642072,-477.56537165,0.00011232,2]
[336068157,1724688642081,-500.0,0.00011232,2]
[336068158,1724688642090,-500.0,0.00011232,2]
[336068159,1724688642099,-500.0,0.00011232,2]
[336068160,1724688642108,-500.0,0.00011232,2]
[336068161,1724688642117,-500.0,0.00011232,2]
[336068162,1724688642126,-611.7,0.00011232,2]
[336068163,1724688642134,-500.0,0.00011232,2]
[336068164,1724688642143,-500.0,0.00011232,2]
[336068165,1724688642153,-500.0,0.00011232,2]
[336068166,1724688642162,-500.0,0.00011232,2]
[336068167,1724688642171,-500.0,0.00011232,2]
[336068168,1724688642180,-500.0,0.00011232,2]
[336068169,1724688642189,-719.13,0.00011232,2]
[336068170,1724688642198,-1058.04,0.00011232,2]
[336068171,1724688642207,-662.33,0.00011232,2]
[336068172,1724688642217,-500.0,0.00011232,2]
[336068173,1724688642226,-500.0,0.00011232,2]
[336068174,1724688642235,-500.0,0.00011232,2]
[336068175,1724688642244,-500.0,0.00011232,2]
[336068176,1724688642253,-500.0,0.00011232,2]
[336068177,1724688642262,-500.0,0.00011232,2]
[336068178,1724688642271,-1173.34,0.00011232,2]
[336068179,1724688642280,-709.59,0.00011232,2]
[336068180,1724688642290,-860.74,0.00011232,2]
[336068181,1724688642299,-972.43,0.00011232,2]
[336068182,1724688642309,-531.4,0.00011232,2]
[336068183,1724688642318,-500.0,0.00011232,2]
[336068184,1724688642328,-500.0,0.00011232,2]
[336068185,1724688642338,-500.0,0.00011232,2]
[336068186,1724688642347,-500.0,0.00011232,2]
[336068187,1724688642357,-153.0,0.00011233,2]
[336068188,1724688642367,-153.0,0.00011233,2]
[336068189,1724688642376,-153.0,0.00011233,2]
[336068190,1724688642385,-2208.54972757,0.00011269,2]
[336068191,1724688642394,-168.04277307,0.00011273,2]
[336068192,1724688642403,-500.0,0.00011273,2]
[336068193,1724688642413,-500.0,0.00011273,2]
[336068194,1724688642422,-500.0,0.00011273,2]
[336068195,1724688642431,-500.0,0.00011273,2]
[336068196,1724688642440,-500.0,0.00011273,2]
[336068197,1724688642449,-500.0,0.00011308,2]
[336068198,1724688642459,-273.96,0.00011308,2]
[336068199,1724688642468,-1360.89593341,0.0001137,2]
[336068200,1724688642477,-500.0,0.00011407,2]
[336068201,1724688642486,-500.0,0.00011407,2]
[336068202,1724688642495,-657.63,0.00011408,2]
[336068203,1724688642505,-489.0,0.00011408,2]
[336068204,1724688642514,-500.0,0.00011408,2]
[336068205,1724688642523,-500.0,0.00011408,2]
[336068206,1724688642533,-500.0,0.00011408,2]
[336068207,1724688642542,-847.36,0.00011408,2]
[336068208,1724688642552,-500.0,0.00011408,2]
[336068209,1724688642561,-504.07,0.00011408,2]
[336068210,1724688642571,-500.0,0.00011408,2]
[336068211,1724688642580,-526.67,0.00011408,2]
[336068212,1724688642589,-500.0,0.00011408,2]
[336068214,1724688642598,-500.0,0.00011408,2]
[336068215,1724688642607,-500.0,0.00011408,2]
[336068216,1724688642617,-500.0,0.00011408,2]
[336068217,1724688642626,-500.0,0.00011408,2]
[336068218,1724688642636,-500.0,0.00011408,2]
[336068219,1724688642647,-689.26,0.00011408,2]
[336068220,1724688642658,-605.53,0.00011408,2]
[336068222,1724688642667,-611.8,0.00011408,2]
[336068224,1724688642676,-500.0,0.00011409,2]
[336068226,1724688642686,-500.0,0.00011409,2]
[336068227,1724688642695,-37526.57971366,0.00011409,2]
[336068228,1724688642705,-154.74467129,0.00011409,2]
[336068229,1724688642714,-2208.54972757,0.00011474,2]
[336068230,1724688642726,-500.0,0.00011504,2]
[336068231,1724688642735,-500.0,0.00011504,2]
[336068232,1724688642744,-779.06,0.00011504,2]
[336068233,1724688642754,-779.06,0.00011504,2]
[336068234,1724688642763,-500.0,0.00011504,2]
[336068235,1724688642772,-501.7957613,0.00011505,2]
[336068236,1724688642781,-500.0,0.00011505,2]
[336068237,1724688642791,-746.73,0.00011505,2]
[336068238,1724688642800,-335.92579032,0.00011505,2]
[336068240,1724688642809,-500.0,0.00011505,2]
[336068242,1724688642819,-501.58,0.00011505,2]
[336068244,1724688642828,-500.0,0.00011505,2]
[336068245,1724688642837,-500.0,0.00011505,2]
[336068247,1724688642847,-500.0,0.00011505,2]
[336068249,1724688642857,-766.49,0.00011505,2]
[336068251,1724688642866,-500.0,0.00011505,2]
[336068253,1724688642876,-500.0,0.00011505,2]
[336068255,1724688642886,-779.06,0.00011505,2]
[336068257,1724688642896,-779.06,0.00011505,2]
[336068259,1724688642905,-779.06,0.00011505,2]
[336068261,1724688642915,-500.0,0.00011505,2]
[336068263,1724688642925,-500.0,0.00011505,2]
[336068264,1724688642934,-500.0,0.00011506,2]
[336068265,1724688642943,-954.7,0.00011506,2]
[336068266,1724688642954,-500.0,0.00011506,2]
[336068268,1724688642964,-654.99,0.00011506,2]
[336068269,1724688642974,-500.0,0.00011506,2]
[336068270,1724688642984,-500.0,0.00011506,2]
[336068271,1724688642993,-500.0,0.00011506,2]
[336068272,1724688643003,-676.74,0.00011506,2]
[336068273,1724688643012,-542.98,0.00011506,2]
[336068277,1724688643200,-500.0,0.00011506,2]
[336068279,1724688643211,-500.0,0.00011506,2]
[336068281,1724688643222,-501.37,0.00011506,2]
[336068283,1724688643232,-500.0,0.00011506,2]
[336068285,1724688643242,-500.0,0.00011506,2]
[336068287,1724688643251,-500.0,0.00011506,2]
[336068289,1724688643262,-567.22,0.00011506,2]
[336068291,1724688643273,-500.0,0.00011506,2]
[336068293,1724688643282,-500.0,0.00011506,2]
[336068295,1724688643293,-500.0,0.00011506,2]
[336068297,1724688643303,-500.0,0.00011506,2]
[336068299,1724688643312,-500.0,0.00011506,2]
[336068301,1724688643321,-500.0,0.00011506,2]
[336068302,1724688643331,-500.0,0.00011506,2]
[336068303,1724688643341,-500.0,0.00011506,2]
[336068304,1724688643351,-500.0,0.00011506,2]
[336068305,1724688643361,-500.0,0.00011506,2]
[336068306,1724688643371,-500.0,0.00011506,2]
[336068307,1724688643380,-500.0,0.00011506,2]
[336068308,1724688643389,-500.0,0.00011506,2]
[336068309,1724688643398,-500.0,0.00011506,2]
[336068310,1724688643408,-613.58,0.00011506,2]
[336068311,1724688643419,-500.0,0.00011506,2]
[336068312,1724688643429,-500.0,0.00011506,2]
[336068313,1724688643439,-500.0,0.00011506,2]
[336068314,1724688643450,-500.0,0.00011506,2]
[336068315,1724688643459,-500.0,0.00011506,2]
[336068316,1724688643469,-500.0,0.00011506,2]
[336068317,1724688643479,-500.0,0.00011506,2]
[336068318,1724688643488,-525.71,0.00011506,2]
[336068319,1724688643497,-500.0,0.00011506,2]
[336068320,1724688643506,-507.12,0.00011506,2]
[336068321,1724688643516,-500.0,0.00011506,2]
[336068322,1724688643526,-500.0,0.00011506,2]
[336068323,1724688643536,-500.0,0.00011506,2]
[336068324,1724688643547,-501.24597076,0.00011506,2]
[336068325,1724688643557,-816.88,0.00011506,2]
[336068326,1724688643567,-500.0,0.00011506,2]
[336068327,1724688643576,-644.29,0.00011506,2]
[336068328,1724688643586,-500.0,0.00011506,2]
[336068329,1724688643595,-500.0,0.00011506,2]
[336068330,1724688643605,-500.0,0.00011506,2]
[336068331,1724688643615,-500.0,0.00011506,2]
[336068332,1724688643625,-500.0,0.00011506,2]
[336068333,1724688643634,-500.0,0.00011506,2]
[336068334,1724688643644,-500.0,0.00011506,2]
[336068335,1724688643656,-500.0,0.00011506,2]
[336068336,1724688643666,-500.0,0.00011506,2]
[336068337,1724688643676,-500.0,0.00011506,2]
[336068338,1724688643687,-405.44780795,0.00011506,2]
[336068339,1724688643698,-500.0,0.00011506,2]
[336068340,1724688643707,-500.0,0.00011506,2]
[336068341,1724688643717,-500.0,0.00011506,2]
[336068342,1724688643728,-500.0,0.00011506,2]
[336068343,1724688643738,-500.0,0.00011506,2]
[336068344,1724688643748,-489.15234295,0.00011506,2]
[336068345,1724688643758,-500.0,0.00011506,2]
[336068346,1724688643768,-500.0,0.00011506,2]
[336068347,1724688643777,-500.0,0.00011506,2]
[336068348,1724688643788,-500.0,0.00011506,2]
[336068349,1724688643797,-674.17,0.00011506,2]
[336068350,1724688643807,-500.0,0.00011506,2]
[336068351,1724688643816,-500.0,0.00011506,2]
[336068352,1724688643827,-439.75653772,0.00011506,2]
[336068353,1724688643836,-482.67296286,0.00011506,2]
[336068354,1724688643846,-619.38,0.00011506,2]
[336068355,1724688643857,-707.42,0.00011506,2]
[336068356,1724688643867,-500.0,0.00011506,2]
[336068357,1724688643876,-500.0,0.00011506,2]
[336068358,1724688643886,-500.0,0.00011506,2]
[336068359,1724688643896,-500.0,0.00011506,2]
[336068360,1724688643907,-845.31,0.00011506,2]
[336068361,1724688643916,-596.5,0.00011506,2]
[336068362,1724688643926,-519.32,0.00011506,2]
[336068363,1724688643936,-589.86423699,0.00011506,2]
[336068364,1724688643945,-500.0,0.00011506,2]
[336068365,1724688643955,-500.0,0.00011506,2]
[336068366,1724688643965,-500.0,0.00011506,2]
[336068367,1724688643976,-713.1,0.00011506,2]
[336068368,1724688643986,-996.63,0.00011506,2]
[336068369,1724688643995,-500.0,0.00011506,2]
[336068370,1724688644005,-500.0,0.00011506,2]
[336068371,1724688644015,-500.0,0.00011506,2]
[336068372,1724688644025,-500.0,0.00011506,2]
[336068373,1724688644035,-748.73,0.00011506,2]
[336068374,1724688644045,-500.0,0.00011506,2]
[336068375,1724688644055,-595.04,0.00011506,2]
[336068376,1724688644065,-526.6,0.00011506,2]
[336068377,1724688644075,-500.0,0.00011506,2]
[336068378,1724688644085,-500.0,0.00011506,2]
[336068379,1724688644095,-500.0,0.00011506,2]
[336068380,1724688644105,-500.0,0.00011506,2]
[336068381,1724688644115,-500.0,0.00011506,2]
[336068382,1724688644125,-643.01,0.00011506,2]
[336068383,1724688644135,-557.06,0.00011506,2]
[336068384,1724688644146,-682.0,0.00011506,2]
[336068385,1724688644156,-500.0,0.00011506,2]
[336068386,1724688644168,-500.0,0.00011506,2]
[336068387,1724688644177,-500.0,0.00011506,2]
[336068388,1724688644187,-503.78,0.00011506,2]
[336068389,1724688644197,-746.13,0.00011506,2]
[336068390,1724688644206,-500.0,0.00011506,2]
[336068391,1724688644216,-593.89,0.00011506,2]
[336068392,1724688644227,-500.0,0.00011506,2]
[336068393,1724688644237,-500.0,0.00011506,2]
[336068394,1724688644248,-500.0,0.00011506,2]
[336068395,1724688644261,-500.0,0.00011506,2]
[336068396,1724688644270,-500.0,0.00011506,2]
[336068397,1724688644280,-500.0,0.00011506,2]
[336068398,1724688644290,-500.0,0.00011506,2]
[336068399,1724688644299,-544.7424059,0.00011506,2]
[336068400,1724688644309,-595.54,0.00011506,2]
[336068401,1724688644319,-663.47,0.00011506,2]
[336068402,1724688644330,-500.0,0.00011506,2]
[336068403,1724688644339,-500.0,0.00011506,2]
[336068404,1724688644349,-1088.92,0.00011506,2]
[336068405,1724688644359,-500.0,0.00011506,2]
[336068406,1724688644368,-500.0,0.00011506,2]
[336068407,1724688644379,-500.0,0.00011506,2]
[336068408,1724688644388,-500.0,0.00011506,2]
[336068409,1724688644398,-500.0,0.00011506,2]
[336068410,1724688644410,-500.0,0.00011506,2]
[336068411,1724688644419,-500.0,0.00011506,2]
[336068412,1724688644428,-500.0,0.00011506,2]
[336068413,1724688644438,-500.0,0.00011506,2]
[336068414,1724688644447,-540.83,0.00011506,2]
[336068415,1724688644457,-741.78,0.00011506,2]
[336068416,1724688644467,-909.81,0.00011506,2]
[336068417,1724688644477,-500.0,0.00011506,2]
[336068418,1724688644486,-797.11,0.00011506,2]
[336068419,1724688644496,-1345.42,0.00011506,2]
[336068420,1724688644506,-212.79548541,0.00011506,2]
[336068421,1724688644516,-1007.38,0.00011506,2]
[336068422,1724688644526,-500.0,0.00011506,2]
[336068423,1724688644536,-500.0,0.00011506,2]
[336068424,1724688644554,-500.0,0.00011506,2]
[336068425,1724688644564,-500.0,0.00011506,2]
[336068426,1724688644573,-500.0,0.00011506,2]
[336068427,1724688644584,-675.17,0.00011506,2]
[336068428,1724688644593,-500.0,0.00011506,2]
[336068429,1724688644602,-500.0,0.00011506,2]
[336068430,1724688644612,-500.0,0.00011506,2]
[336068431,1724688644621,-500.0,0.00011506,2]
[336068432,1724688644631,-500.0,0.00011506,2]
[336068433,1724688644641,-796.81,0.00011506,2]
[336068434,1724688644652,-500.0,0.00011506,2]
[336068435,1724688644662,-714.78,0.00011506,2]
[336068436,1724688644671,-500.0,0.00011506,2]
[336068437,1724688644681,-588.35,0.00011506,2]
[336068438,1724688644692,-500.0,0.00011506,2]
[336068439,1724688644702,-964.7,0.00011506,2]
[336068440,1724688644712,-500.0,0.00011506,2]
[336068441,1724688644723,-500.0,0.00011506,2]
[336068442,1724688644734,-533.78,0.00011506,2]
[336068443,1724688644743,-2493.65,0.00011506,2]
[336068444,1724688644757,-500.0,0.00011506,2]
[336068445,1724688644767,-635.09,0.00011506,2]
[336068446,1724688644776,-500.0,0.00011506,2]
[336068447,1724688644786,-500.0,0.00011506,2]
[336068448,1724688644796,-627.66,0.00011506,2]
[336068449,1724688644806,-662.01,0.00011506,2]
[336068450,1724688644817,-500.0,0.00011506,2]
[336068451,1724688644827,-549.64,0.00011506,2]
[336068452,1724688644837,-500.0,0.00011506,2]
[336068453,1724688644847,-500.0,0.00011506,2]
[336068454,1724688644856,-500.0,0.00011506,2]
[336068455,1724688644866,-838.13,0.00011506,2]
[336068456,1724688644876,-830.29,0.00011506,2]
[336068457,1724688644885,-871.24,0.00011506,2]
[336068458,1724688644895,-500.0,0.00011506,2]
[336068459,1724688644904,-633.26,0.00011506,2]
[336068460,1724688644914,-659.35,0.00011506,2]
[336068461,1724688644924,-500.0,0.00011506,2]
[336068462,1724688644934,-570.29,0.00011506,2]
[336068463,1724688644943,-759.91,0.00011506,2]
[336068464,1724688644953,-500.0,0.00011506,2]
[336068465,1724688644962,-500.0,0.00011506,2]
[336068466,1724688644972,-734.58,0.00011506,2]
[336068467,1724688644982,-500.0,0.00011506,2]
[336068468,1724688644992,-500.0,0.00011506,2]
[336068469,1724688645001,-578.76,0.00011506,2]
[336068470,1724688645013,-741.33,0.00011506,2]
[336068471,1724688645023,-500.0,0.00011506,2]
[336068472,1724688645032,-500.0,0.00011506,2]
[336068473,1724688645043,-500.0,0.00011506,2]
[336068474,1724688645052,-850.15,0.00011506,2]
[336068475,1724688645062,-500.0,0.00011506,2]
[336068476,1724688645071,-575.01,0.00011506,2]
[336068477,1724688645080,-1181.34,0.00011506,2]
[336068478,1724688645090,-500.0,0.00011506,2]
[336068479,1724688645099,-500.0,0.00011506,2]
[336068480,1724688645109,-500.0,0.00011506,2]
[336068481,1724688645118,-500.0,0.00011506,2]
[336068482,1724688645128,-500.0,0.00011506,2]
[336068483,1724688645137,-666.81,0.00011506,2]
[336068484,1724688645147,-1951.16,0.00011506,2]
[336068485,1724688645156,-500.0,0.00011506,2]
[336068486,1724688645165,-893.49,0.00011506,2]
[336068487,1724688645174,-500.0,0.00011506,2]
[336068488,1724688645184,-756.87,0.00011506,2]
[336068489,1724688645194,-500.0,0.00011506,2]
[336068490,1724688645207,-500.0,0.00011506,2]
[336068491,1724688645216,-642.05,0.00011506,2]
[336068492,1724688645225,-500.0,0.00011506,2]
[336068493,1724688645234,-500.0,0.00011506,2]
[336068494,1724688645244,-507.14,0.00011506,2]
[336068495,1724688645257,-948.36,0.00011506,2]
[336068496,1724688645266,-500.0,0.00011506,2]
[336068497,1724688645276,-500.0,0.00011506,2]
[336068498,1724688645286,-500.0,0.00011506,2]
[336068499,1724688645295,-500.0,0.00011506,2]
[336068500,1724688645305,-500.0,0.00011506,2]
[336068501,1724688645314,-500.0,0.00011506,2]
[336068502,1724688645324,-312.94582543,0.00011506,2]
[336068503,1724688645334,-500.0,0.00011506,2]
[336068504,1724688645343,-852.28,0.00011506,2]
[336068505,1724688645353,-876.89,0.00011506,2]
[336068506,1724688645362,-500.0,0.00011506,2]
[336068507,1724688645371,-500.0,0.00011506,2]
[336068508,1724688645381,-531.75,0.00011506,2]
[336068509,1724688645390,-500.0,0.00011506,2]
[336068512,1724688645399,-500.0,0.00011506,2]
[336068514,1724688645409,-500.0,0.00011506,2]
[336068515,1724688645420,-549.14,0.00011506,2]
[336068516,1724688645429,-500.0,0.00011506,2]
[336068517,1724688645440,-500.0,0.00011506,2]
[336068518,1724688645450,-500.0,0.00011506,2]
[336068519,1724688645459,-1257.07,0.00011506,2]
[336068520,1724688645469,-1620.4,0.00011506,2]
[336068521,1724688645480,-643.03,0.00011506,2]
[336068522,1724688645490,-500.0,0.00011506,2]
[336068523,1724688645499,-500.0,0.00011506,2]
[336068524,1724688645508,-500.0,0.00011506,2]
[336068525,1724688645518,-17680.36,0.00011506,2]
[336068526,1724688645527,-500.0,0.00011506,2]
[336068527,1724688645537,-500.0,0.00011506,2]
[336068528,1724688645547,-890.96,0.00011506,2]
[336068529,1724688645556,-500.0,0.00011506,2]
[336068530,1724688645566,-500.0,0.00011506,2]
[336068531,1724688645576,-890.21,0.00011506,2]
[336068532,1724688645586,-500.0,0.00011506,2]
[336068533,1724688645596,-500.0,0.00011506,2]
[336068535,1724688645660,-513.92,0.00011506,2]
[336068537,1724688645669,-522.6,0.00011506,2]
[336068539,1724688645678,-500.0,0.00011506,2]
[336068541,1724688645688,-500.0,0.00011506,2]
[336068543,1724688645697,-500.0,0.00011506,2]
[336068544,1724688645706,-526.31,0.00011506,2]
[336068546,1724688645715,-552.98,0.00011506,2]
[336068548,1724688645726,-927.57,0.00011506,2]
[336068550,1724688645735,-500.0,0.00011506,2]
[336068552,1724688645745,-500.0,0.00011506,2]
[336068553,1724688645754,-500.0,0.00011506,2]
[336068554,1724688645764,-758.27,0.00011506,2]
[336068555,1724688645775,-500.0,0.00011506,2]
[336068556,1724688645786,-500.0,0.00011506,2]
[336068557,1724688645798,-500.0,0.00011506,2]
[336068558,1724688645808,-500.0,0.00011506,2]
[336068559,1724688645817,-500.0,0.00011506,2]
[336068560,1724688645826,-684.26,0.00011506,2]
[336068561,1724688645836,-500.0,0.00011506,2]
[336068562,1724688645847,-500.0,0.00011506,2]
[336068563,1724688645856,-500.0,0.00011506,2]
[336068564,1724688645866,-500.0,0.00011506,2]
[336068565,1724688645875,-500.0,0.00011506,2]
[336068566,1724688645884,-500.0,0.00011506,2]
[336068567,1724688645893,-500.0,0.00011506,2]
[336068568,1724688645903,-555.39,0.00011506,2]
[336068569,1724688645912,-542.95,0.00011506,2]
[336068570,1724688645922,-549.18,0.00011506,2]
[336068571,1724688645935,-500.0,0.00011506,2]
[336068572,1724688645946,-500.0,0.00011506,2]
[336068573,1724688645957,-500.0,0.00011506,2]
[336068574,1724688645967,-500.0,0.00011506,2]
[336068575,1724688645976,-500.0,0.00011506,2]
[336068576,1724688645985,-500.0,0.00011506,2]
[336068577,1724688645994,-611.7,0.00011506,2]
[336068578,1724688646003,-500.0,0.00011506,2]
[336068579,1724688646011,-500.0,0.00011506,2]
[336068580,1724688646021,-500.0,0.00011506,2]
[336068581,1724688646029,-500.0,0.00011506,2]
[336068582,1724688646039,-500.0,0.00011506,2]
[336068583,1724688646052,-719.13,0.00011506,2]
[336068584,1724688646061,-1058.04,0.00011506,2]
[336068585,1724688646070,-662.33,0.00011506,2]
[336068586,1724688646079,-500.0,0.00011506,2]
[336068587,1724688646089,-500.0,0.00011506,2]
[336068588,1724688646098,-500.0,0.00011506,2]
[336068589,1724688646108,-500.0,0.00011506,2]
[336068590,1724688646117,-500.0,0.00011506,2]
[336068591,1724688646127,-500.0,0.00011506,2]
[336068592,1724688646136,-1173.34,0.00011506,2]
[336068593,1724688646146,-709.59,0.00011506,2]
[336068594,1724688646155,-860.74,0.00011506,2]
[336068595,1724688646165,-972.43,0.00011506,2]
[336068596,1724688646174,-531.4,0.00011506,2]
[336068597,1724688646183,-500.0,0.00011506,2]
[336068598,1724688646192,-673.47715725,0.00011583,2]
[336068599,1724688646202,-5721.62172679,0.00011586,2]
[336068600,1724688646211,-2208.54972757,0.00011679,2]
[336068601,1724688646223,-500.0,0.00011681,2]
[336068602,1724688646233,-657.63,0.00011682,2]
[336068603,1724688646242,-500.0,0.00011682,2]
[336068604,1724688646251,-500.0,0.00011682,2]
[336068605,1724688646261,-847.36,0.00011682,2]
[336068606,1724688646270,-500.0,0.00011682,2]
[336068607,1724688646279,-504.07,0.00011682,2]
[336068608,1724688646289,-500.0,0.00011682,2]
[336068609,1724688646299,-526.67,0.00011682,2]
[336068610,1724688646308,-500.0,0.00011682,2]
[336068611,1724688646317,-500.0,0.00011682,2]
[336068612,1724688646327,-500.0,0.00011682,2]
[336068613,1724688646337,-500.0,0.00011682,2]